bitfinex-derivatives/quotes_SOLF0:USTF0_20250318
["timestamp","ask_amount","ask_price","bid_price","bid_amount"]
[1742312107535,30.78,122.7,122.64,321.09984762]
[1742312108028,0.06142697,122.68,122.64,321.09984762]
[1742312108827,0.06142697,122.68,122.67,8.1526]
[1742312109026,0.06142697,122.68,122.67,38.9326]
[1742312112330,2.697e-05,122.68,122.67,38.9326]
[1742312112728,2.143,122.76,122.67,38.94]
[1742312112927,2.143,122.76,122.7,21.49984762]
[1742312113131,2.143,122.76,122.7,321.19984762]
[1742312113431,2.143,122.76,122.74,8.1478]
[1742312114025,2.19715825,122.76,122.74,8.19978387]
[1742312115031,2.19715825,122.76,122.74,0.05198387]
[1742312116529,21.49984762,122.75,122.74,0.05198387]
[1742312116732,21.49984762,122.73,122.66,299.68]
[1742312117034,30.78,122.72,122.66,321.17984762]
[1742312117427,30.78,122.72,122.71,8.1499]
[1742312119133,0.05367441,122.73,122.72,8.1492]
[1742312119522,32.923,122.76,122.72,8.1492]
[1742312119725,0.05241306,122.74,122.72,8.1492]
[1742312120628,0.05241306,122.74,122.69,30.8]
[1742312121134,0.05241306,122.74,122.72,8.1492]
[1742312121533,0.05241306,122.74,122.69,30.8]
[1742312122229,0.05241306,122.74,122.73,8.1486]
[1742312124434,56.66434762,122.81,122.77,8.1458]
[1742312124634,56.66434762,122.81,122.73,268.92]
[1742312124831,56.66434762,122.81,122.76,8.1463]
[1742312125033,56.66434762,122.81,122.74,30.78]
[1742312125534,0.05940711,122.79,122.77,8.1459]
[1742312126235,0.05940711,122.79,122.76,0.05454826]
[1742312126737,8.20440711,122.79,122.76,8.20084826]
[1742312127437,8.20440711,122.79,122.77,8.1459]
[1742312127825,0.05940711,122.79,122.76,0.05454826]
[1742312128738,0.05940711,122.79,122.78,8.1453]
[1742312129928,0.05940711,122.79,122.77,8.1456]
[1742312130338,21.55925473,122.79,122.76,0.05454826]
[1742312131139,8.1456,122.78,122.76,0.05454826]
[1742312131329,21.55925473,122.79,122.76,0.05454826]
[1742312131531,0.05940711,122.79,122.77,8.1458]
[1742312131835,8.20440711,122.79,122.76,0.05454826]
[1742312132045,8.20440711,122.79,122.77,8.1458]
[1742312132335,0.05940711,122.79,122.77,8.1458]
[1742312133343,13.82129801,122.79,122.77,8.1458]
[1742312133641,13.82129801,122.79,122.76,8.20074826]
[1742312134243,21.96629801,122.79,122.76,8.20074826]
[1742312134443,6.88094545,122.77,122.76,0.05454826]
[1742312134645,44.5418909,122.77,122.7,13.7618909]
[1742312134843,13.7618909,122.75,122.7,13.7618909]
[1742312135145,13.7618909,122.75,122.73,8.1482]
[1742312135843,13.81577802,122.75,122.73,8.1482]
[1742312136842,0.05388712,122.75,122.74,8.1479]
[1742312137238,0.05388712,122.75,122.74,21.9097909]
[1742312139447,0.05388712,122.75,122.74,8.1479]
[1742312142337,35.1645,122.81,122.74,21.50228076]
[1742312142538,35.1645,122.81,122.75,299.64]
[1742312143044,52.28228076,122.83,122.75,299.64]
[1742312143248,52.28228076,122.83,122.75,303.74]
[1742312143442,0.06017749,122.8,122.79,8.1443]
[1742312146151,21.50228076,122.85,122.82,8.1424]
[1742312146450,29.64298076,122.85,122.8,30.76]
[1742312146839,29.64298076,122.85,122.81,8.1429]
[1742312147039,21.50228076,122.85,122.8,30.76]
[1742312147246,0.05875934,122.84,122.82,0.0591657]
[1742312148652,0.05875934,122.84,122.82,8.2013657]
[1742312148855,0.05875934,122.84,122.82,0.0591657]
[1742312149349,8.20035934,122.84,122.82,0.0591657]
[1742312149547,21.50228076,122.83,122.82,0.0591657]
[1742312149853,52.26228076,122.83,122.77,30.76]
[1742312150254,8.1429,122.82,122.78,8.1452]
[1742312150550,52.26228076,122.83,122.77,30.76]
[1742312150946,0.05745407,122.81,122.79,0.05903237]
[1742312151354,8.20075407,122.81,122.79,0.05903237]
[1742312153154,0.05745407,122.81,122.79,0.05903237]
[1742312153749,8.20115407,122.81,122.79,0.05903237]
[1742312154754,8.1439,122.8,122.79,0.05903237]
[1742312154956,0.05745407,122.81,122.79,0.05903237]
[1742312155648,8.20105407,122.81,122.79,0.05903237]
[1742312155953,0.05745407,122.81,122.79,0.05903237]
[1742312156649,8.20095407,122.81,122.79,0.05903237]
[1742312157451,8.1439,122.8,122.79,0.05903237]
[1742312159260,8.20085407,122.81,122.79,0.05903237]
[1742312160058,0.05745407,122.81,122.8,30.76]
[1742312160652,0.05745407,122.81,122.79,0.05903237]
[1742312161055,8.1439,122.8,122.79,0.05903237]
[1742312161256,21.90355122,122.8,122.79,0.05903237]
[1742312162454,13.81710529,122.81,122.79,0.05903237]
[1742312165554,8.20105407,122.81,122.79,0.05903237]
[1742312165752,0.05745407,122.81,122.8,13.75965122]
[1742312166255,0.05745407,122.81,122.8,21.90355122]
[1742312167053,0.05745407,122.81,122.8,8.1439]
[1742312168170,45.06822629,122.88,122.79,0.05903237]
[1742312168171,45.06822629,122.88,122.79,21.54310231]
[1742312168357,45.06822629,122.88,122.81,21.48406994]
[1742312168559,45.06822629,122.88,122.82,299.5]
[1742312168753,45.06822629,122.88,122.85,8.1403]
[1742312169560,45.12489429,122.88,122.85,0.05452462]
[1742312170353,53.26389429,122.88,122.85,0.05452462]
[1742312170561,45.12489429,122.88,122.85,0.05452462]
[1742312171066,8.1397,122.87,122.85,0.05452462]
[1742312171266,0.056668,122.88,122.85,0.05452462]
[1742312172160,0.056668,122.88,122.86,8.1396]
[1742312173063,0.056668,122.88,122.85,52.27859456]
[1742312173568,0.056668,122.88,122.85,30.79452462]
[1742312174163,0.056668,122.88,122.85,38.93462462]
[1742312174359,0.056668,122.88,122.86,21.48406994]
[1742312174665,11.26705657,122.93,122.86,21.48406994]
[1742312175376,8.1363,122.92,122.87,8.1389]
[1742312175559,21.48406994,122.94,122.88,30.74]
[1742312175759,0.05717012,122.91,122.89,268.66]
[1742312175964,0.05717012,122.91,122.89,276.7976]
[1742312176167,0.05717012,122.91,122.89,268.66]
[1742312176360,0.05717012,122.91,122.89,268.71839976]
[1742312177070,0.05717012,122.91,122.89,276.85599976]
[1742312177472,0.05717012,122.91,122.9,8.1373]
[1742312177771,0.05717012,122.91,122.89,268.71839976]
[1742312177968,45.06822629,122.95,122.94,8.1346]
[1742312178272,45.06822629,122.95,122.94,38.8746]
[1742312179266,45.06822629,122.95,122.94,30.74]
[1742312180172,0.05460066,122.96,122.94,30.74]
[1742312180571,0.05460066,122.96,122.93,0.05554704]
[1742312181067,0.05460066,122.96,122.93,8.19034704]
[1742312181667,0.05460066,122.96,122.94,8.1345]
[1742312181868,0.05460066,122.96,122.93,0.05554704]
[1742312182267,0.05460066,122.96,122.94,8.134]
[1742312182466,0.05460066,122.96,122.93,0.05554704]
[1742312182673,0.05460066,122.96,122.93,8.19034704]
[1742312182865,0.05460066,122.96,122.93,0.05554704]
[1742312183268,8.1346,122.94,122.93,0.05554704]
[1742312185173,38.8543,122.95,122.93,0.05554704]
[1742312185662,30.72,122.95,122.93,0.05554704]
[1742312187875,0.05460066,122.96,122.93,0.05554704]
[1742312188873,0.05460066,122.96,122.93,30.77554704]
[1742312190074,0.05460066,122.96,122.95,8.134]
[1742312190276,2.1744,123.01,122.95,289.96406994]
[1742312190579,8.1317,122.99,122.96,30.7]
[1742312190971,21.48406994,123.0,122.96,30.7]
[1742312191173,21.48406994,123.0,122.95,268.48]
[1742312191377,52.18406994,123.0,122.95,268.48]
[1742312191780,0.05251819,122.99,122.96,0.06108317]
[1742312192777,0.05251819,122.99,122.97,8.1322]
[1742312193173,0.05251819,122.99,122.96,0.06108317]
[1742312193370,8.18421819,122.99,122.96,8.19438317]
[1742312193575,0.05251819,122.99,122.96,0.06108317]
[1742312194475,1.819e-05,122.99,122.98,21.48406994]
[1742312194970,1.819e-05,122.99,122.98,8.132]
[1742312195175,1.819e-05,122.99,122.97,30.7]
[1742312195476,1.819e-05,122.99,122.97,8.1321]
[1742312197081,52.18408813,122.99,122.96,0.06108317]
[1742312197284,8.1326,122.98,122.96,0.06108317]
[1742312197892,8.1327,122.97,122.96,0.06108317]
[1742312198272,21.48406994,122.97,122.92,268.38]
[1742312198476,8.1353,122.93,122.89,30.7]
[1742312198677,52.18406994,122.94,122.88,268.38]
[1742312198884,8.1363,122.92,122.88,268.38]
[1742312199383,0.05276562,122.91,122.89,0.05672525]
[1742312199877,0.05276562,122.91,122.9,8.1373]
[1742312200576,0.05276562,122.91,122.9,38.8373]
[1742312200779,0.05276562,122.91,122.9,60.32136994]
[1742312201081,6.562e-05,122.91,122.9,38.8373]
[1742312201580,6.562e-05,122.91,122.9,40.9765]
[1742312201882,30.7,122.99,122.96,8.1329]
[1742312202477,8.1312,123.0,122.97,8.1327]
[1742312202678,30.7,123.0,122.97,8.1327]
[1742312202982,0.05678526,123.0,122.99,8.1308]
[1742312204490,8.526e-05,123.0,122.99,38.8308]
[1742312207887,4.421,123.09,122.99,38.84]
[1742312208186,4.421,123.09,123.01,34.30335912]
[1742312208187,43.2464,123.09,123.01,34.30335912]
[1742312208489,43.2464,123.09,123.04,8.1276]
[1742312208490,35.121,123.09,123.04,8.1276]
[1742312208688,4.421,123.09,123.04,8.1276]
[1742312208880,8.1258,123.08,123.04,8.1276]
[1742312209079,8.18399447,123.08,123.05,0.0569878]
[1742312209285,0.05819447,123.08,123.05,0.0569878]
[1742312210190,8.1261,123.07,123.05,0.0569878]
[1742312210693,462.28671824,123.06,122.89,56.44363437]
[1742312210890,34.30335912,123.02,122.94,8.1346]
[1742312211092,34.8602,123.01,122.9,34.30335912]
[1742312211291,8.1318,122.99,122.94,8.1345]
[1742312211695,30.68,122.98,122.9,64.98335912]
[1742312211994,0.06111465,122.98,122.95,0.05931868]
[1742312212195,30.68,122.98,122.95,0.05931868]
[1742312212391,0.0571436,122.98,122.95,0.05931868]
[1742312212589,30.7371436,122.98,122.95,0.05931868]
[1742312213393,0.0571436,122.98,122.95,0.05931868]
[1742312213595,0.0571436,122.98,122.95,8.19291868]
[1742312213795,0.0571436,122.98,122.95,0.05931868]
[1742312214196,0.0571436,122.98,122.95,268.35931868]
[1742312215197,8.1894436,122.98,122.95,268.35931868]
[1742312216499,0.0571436,122.98,122.95,268.35931868]
[1742312217210,8.1894436,122.98,122.95,268.35931868]
[1742312217702,0.0571436,122.98,122.95,268.35931868]
[1742312220105,0.0571436,122.98,122.96,8.1332]
[1742312220300,0.0571436,122.98,122.95,268.35931868]
[1742312220800,34.36050272,122.98,122.95,0.05931868]
[1742312220997,34.36050272,122.98,122.91,268.32]
[1742312222208,34.36050272,122.98,122.93,0.06080733]
[1742312223310,34.36050272,122.98,122.93,8.19580733]
[1742312223808,0.0571436,122.98,122.95,8.1337]
[1742312224008,0.0571436,122.98,122.94,30.68]
[1742312224513,0.0571436,122.98,122.96,8.1329]
[1742312224707,0.0571436,122.98,122.94,30.68]
[1742312224899,0.0571436,122.98,122.94,38.8142]
[1742312225104,0.0571436,122.98,122.95,0.06131234]
[1742312225502,30.7371436,122.98,122.95,0.06131234]
[1742312227113,0.0571436,122.98,122.96,8.1333]
[1742312227308,0.0571436,122.98,122.95,0.06131234]
[1742312229015,0.0571436,122.98,122.96,8.1328]
[1742312229414,0.0571436,122.98,122.95,0.06131234]
[1742312230414,0.0571436,122.98,122.97,8.1327]
[1742312231915,30.68,123.03,123.0,8.1301]
[1742312232212,30.68,123.03,122.97,268.36]
[1742312232614,30.68,123.03,123.01,8.1294]
[1742312232810,69.27575912,123.04,123.01,8.1294]
[1742312233015,0.06152862,123.03,123.01,0.0556171]
[1742312234313,0.06152862,123.03,123.01,8.1853171]
[1742312234517,0.06152862,123.03,123.01,0.0556171]
[1742312234908,0.06152862,123.03,123.02,8.1294]
[1742312235108,0.06152862,123.03,123.01,0.0556171]
[1742312235311,8.19042862,123.03,123.01,0.0556171]
[1742312235512,34.30335912,123.02,122.94,30.68]
[1742312235723,30.68,123.01,122.94,30.68]
[1742312236617,30.68,123.01,122.99,8.131]
[1742312237123,52.16357198,123.01,122.99,8.19335712]
[1742312237415,52.16357198,123.01,122.98,8.1317]
[1742312237616,52.16357198,123.01,122.94,30.68]
[1742312238017,52.16357198,123.01,122.99,8.1311]
[1742312238715,52.16357198,123.01,122.99,8.18591397]
[1742312239520,52.16357198,123.01,123.0,8.1307]
[1742312240910,52.16357198,123.01,122.99,8.18581397]
[1742312241619,52.16357198,123.01,123.0,8.1307]
[1742312242713,0.0530155,123.01,123.0,8.1307]
[1742312243220,0.0530155,123.01,123.0,38.8107]
[1742312244009,21.48357198,123.01,122.99,0.05481397]
[1742312244216,21.48357198,123.01,122.92,37.0453]
[1742312244419,21.43055648,122.99,122.92,37.0453]
[1742312244620,52.11055648,122.99,122.96,8.133]
[1742312244917,52.11055648,122.99,122.92,37.0453]
[1742312245123,52.11055648,122.99,122.96,8.133]
[1742312245322,0.06204868,122.97,122.94,0.06197624]
[1742312245514,21.49260516,122.97,122.94,0.06197624]
[1742312246725,30.68,122.96,122.94,0.06197624]
[1742312247123,8.134,122.95,122.91,268.32]
[1742312247623,73.1357631,122.96,122.91,268.32]
[1742312248019,65.0021631,122.96,122.91,268.32]
[1742312248327,0.06062573,122.95,122.92,8.19139984]
[1742312248727,0.06062573,122.95,122.92,0.05569984]
[1742312249428,8.1352,122.94,122.92,0.05569984]
[1742312249626,32.7183,122.93,122.88,30.68]
[1742312249826,32.7183,122.93,122.87,268.36]
[1742312249827,8.137,122.91,122.87,268.36]
[1742312250021,30.68,122.9,122.87,268.36]
[1742312250521,38.8176,122.9,122.87,268.36]
[1742312250715,38.8176,122.9,122.85,38.8204]
[1742312250716,38.8176,122.9,122.85,8.1404]
[1742312250927,30.74239188,122.9,122.87,0.03944021]
[1742312251627,30.74239188,122.9,122.87,8.17864021]
[1742312251827,38.87989188,122.9,122.87,0.03944021]
[1742312252917,30.74239188,122.9,122.87,0.03944021]
[1742312253322,65.06455498,122.9,122.87,0.03944021]
[1742312253527,65.06455498,122.9,122.83,268.38]
[1742312253826,34.3221631,122.88,122.83,268.38]
[1742312254029,40.9897,122.87,122.83,268.38]
[1742312254426,32.8501,122.87,122.83,268.38]
[1742312254729,0.05860875,122.86,122.83,268.38]
[1742312255026,0.05860875,122.86,122.84,8.1408]
[1742312256428,0.05860875,122.86,122.85,8.1406]
[1742312257024,0.05860875,122.86,122.84,8.141]
[1742312257225,0.05860875,122.86,122.83,268.38]
[1742312257625,0.05860875,122.86,122.85,8.1406]
[1742312258430,0.05860875,122.86,122.84,8.141]
[1742312258630,0.05860875,122.86,122.83,268.38]
[1742312259731,0.05860875,122.86,122.85,8.1406]
[1742312260028,0.05860875,122.86,122.83,268.38]
[1742312260728,8.1409,122.85,122.83,268.38]
[1742312261227,30.7,122.85,122.79,303.4907]
[1742312261632,0.05481962,122.83,122.79,299.22]
[1742312262022,8.19711962,122.83,122.8,8.1435]
[1742312262227,8.19711962,122.83,122.79,299.22]
[1742312262526,8.19711962,122.83,122.8,8.1436]
[1742312262928,0.05481962,122.83,122.79,299.22]
[1742312263134,0.05481962,122.83,122.81,8.1428]
[1742312263335,0.05481962,122.83,122.79,299.22]
[1742312263630,0.05481962,122.83,122.82,8.1426]
[1742312265238,0.05481962,122.83,122.81,8.1429]
[1742312265445,0.05481962,122.83,122.79,268.52]
[1742312265833,0.05481962,122.83,122.82,8.1426]
[1742312266030,0.05481962,122.83,122.79,268.52]
[1742312266233,0.05481962,122.83,122.82,8.1426]
[1742312269338,0.05481962,122.83,122.79,268.52]
[1742312269538,30.7,122.82,122.79,268.52]
[1742312269740,30.7,122.82,122.8,8.1436]
[1742312270038,30.7,122.82,122.79,268.52]
[1742312270240,0.05481962,122.83,122.79,268.52]
[1742312270842,0.05481962,122.83,122.82,8.1426]
[1742312274645,1.962e-05,122.83,122.82,8.1426]
[1742312280445,1.41696696,122.92,122.82,8.1426]
[1742312280446,34.36758602,122.94,122.9,8.1371]
[1742312280642,65.06758602,122.94,122.87,30.7]
[1742312280837,4.213,122.95,122.87,30.7]
[1742312281142,34.913,122.95,122.87,30.7]
[1742312281337,34.913,122.95,122.91,8.1363]
[1742312281537,8.1349,122.94,122.91,8.1363]
[1742312281740,0.06272042,122.94,122.92,0.05481963]
[1742312282145,0.06272042,122.94,122.87,30.7]
[1742312282348,0.06272042,122.94,122.92,8.18841991]
[1742312282546,0.06272042,122.94,122.9,30.7]
[1742312282745,43.0474,122.95,122.92,0.05386809]
[1742312282946,0.0607194,122.93,122.92,8.18956809]
[1742312283752,11.26705657,122.97,122.96,8.1333]
[1742312284147,19.39735657,123.01,122.97,8.1321]
[1742312284342,11.26705657,123.01,122.95,30.7]
[1742312284848,11.26705657,123.01,122.99,8.131]
[1742312285052,0.05579181,122.99,122.98,30.7]
[1742312285654,0.05579181,122.99,122.97,268.66120789]
[1742312286851,0.05579181,122.99,122.97,276.79370789]
[1742312287652,0.05579181,122.99,122.98,8.132]
[1742312288950,0.05579181,122.99,122.97,276.79350789]
[1742312289254,0.05579181,122.99,122.97,268.66120789]
[1742312290252,0.05579181,122.99,122.97,276.79350789]
[1742312292152,0.05579181,122.99,122.97,268.66120789]
[1742312292550,0.05579181,122.99,122.97,276.79380789]
[1742312292752,0.05579181,122.99,122.97,268.66120789]
[1742312293846,34.36758602,122.98,122.92,268.4]
[1742312294949,8.1341,122.95,122.94,0.05433114]
[1742312295249,38.8141,122.95,122.94,0.05433114]
[1742312295448,30.68,122.95,122.94,0.05433114]
[1742312296446,0.05763532,122.96,122.94,0.05433114]
[1742312296950,0.05763532,122.96,122.94,8.18863114]
[1742312297151,0.05763532,122.96,122.94,0.05433114]
[1742312297352,0.05763532,122.96,122.94,30.73433114]
[1742312297756,65.04758602,123.0,122.94,30.73433114]
[1742312298152,8.1304,123.01,122.94,30.73433114]
[1742312298459,30.68,123.01,122.94,30.73433114]
[1742312298662,30.68,123.01,122.98,8.132]
[1742312298956,30.73845034,123.01,122.94,30.68]
[1742312299161,30.73845034,123.01,122.98,0.05614784]
[1742312299958,0.05845034,123.01,123.0,8.1307]
[1742312300157,0.05845034,123.01,122.98,0.05614784]
[1742312300459,0.05845034,123.01,122.98,268.45614784]
[1742312300758,0.05845034,123.01,122.99,8.131]
[1742312301151,0.05845034,123.01,122.98,268.45614784]
[1742312301356,0.05845034,123.01,122.99,8.1313]
[1742312301758,0.05845034,123.01,122.98,276.58784784]
[1742312302254,0.05845034,123.01,122.98,268.45614784]
[1742312302452,0.05845034,123.01,123.0,8.1307]
[1742312304659,0.05845034,123.01,122.99,8.131]
[1742312305260,0.05845034,123.01,122.98,276.58774784]
[1742312305862,0.05845034,123.01,122.98,0.05614784]
[1742312306263,65.02758602,123.0,122.98,0.05614784]
[1742312306762,73.15858602,123.0,122.98,0.05614784]
[1742312306963,65.02758602,123.0,122.98,0.05614784]
[1742312307360,0.05845034,123.01,122.98,0.05614784]
[1742312307665,0.05845034,123.01,122.98,30.71614784]
[1742312307963,0.05845034,123.01,123.0,8.1307]
[1742312308765,0.05845034,123.01,122.99,8.131]
[1742312309765,0.05845034,123.01,123.0,8.1307]
[1742312311166,0.05845034,123.01,122.98,0.05614784]
[1742312311763,0.05845034,123.01,123.0,8.1307]
[1742312316569,0.05845034,123.01,122.99,8.131]
[1742312316770,0.05845034,123.01,122.98,0.05614784]
[1742312317270,0.05845034,123.01,122.99,8.1312]
[1742312318573,0.05845034,123.01,122.99,268.28]
[1742312320072,0.05845034,123.01,122.99,276.4113]
[1742312320378,0.05845034,123.01,122.99,268.28]
[1742312320572,8.18865034,123.01,122.99,268.28]
[1742312320872,0.05845034,123.01,122.99,268.28]
[1742312321078,8.18875034,123.01,122.99,268.28]
[1742312322668,0.05845034,123.01,122.99,268.28]
[1742312323278,0.05845034,123.01,122.99,276.411]
[1742312323471,8.18855034,123.01,122.99,268.28]
[1742312323881,8.1307,123.0,122.99,268.28]
[1742312324077,29.54886338,123.0,122.99,268.28]
[1742312324374,0.05845034,123.01,122.99,268.28]
[1742312325079,8.1307,123.0,122.99,268.28]
[1742312326077,0.05845034,123.01,122.98,0.05614784]
[1742312326279,8.1313,122.99,122.98,0.05614784]
[1742312326682,21.41816338,123.0,122.98,0.05614784]
[1742312327283,29.54926338,123.0,122.98,0.05614784]
[1742312327884,10.40625034,123.01,122.98,0.05614784]
[1742312328387,2.27585034,123.01,122.98,0.05614784]
[1742312329082,21.41816338,123.0,122.98,0.05614784]
[1742312329489,8.1313,122.99,122.98,0.05614784]
[1742312330982,29.54926338,123.0,122.98,0.05614784]
[1742312331981,21.41816338,123.0,122.98,8.18804784]
[1742312332988,2.27585034,123.01,122.98,8.18804784]
[1742312333390,2.27585034,123.01,122.98,0.05614784]
[1742312333585,10.40595034,123.01,122.98,0.05614784]
[1742312334090,10.40595034,123.01,122.98,8.18784784]
[1742312334690,8.18855034,123.01,122.98,8.18784784]
[1742312334884,8.18855034,123.01,122.99,8.1313]
[1742312335085,0.05845034,123.01,122.99,8.1313]
[1742312335684,0.05845034,123.01,122.98,8.18774784]
[1742312336587,8.18875034,123.01,122.99,8.1313]
[1742312336887,0.05845034,123.01,122.99,8.1313]
[1742312337291,0.05845034,123.01,123.0,8.1307]
[1742312338597,45.06822629,123.07,122.99,21.41816338]
[1742312338796,45.06822629,123.07,122.99,23.59896338]
[1742312338992,45.06822629,123.07,123.05,8.1273]
[1742312339893,45.13074648,123.07,123.05,8.18118346]
[1742312340095,45.13074648,123.07,123.06,8.1267]
[1742312340597,45.13074648,123.07,123.06,38.7667]
[1742312340793,32.81264648,123.07,123.06,38.7667]
[1742312341000,90.13645259,123.08,123.07,8.1261]
[1742312341391,90.13645259,123.08,123.05,0.05388346]
[1742312341993,21.41816338,123.11,123.06,8.1261]
[1742312342190,0.06202151,123.08,123.06,8.1261]
[1742312342499,0.06202151,123.08,123.05,8.18088346]
[1742312342694,0.06202151,123.08,123.05,0.05388346]
[1742312346387,0.06202151,123.08,123.05,8.18118346]
[1742312346593,0.06202151,123.08,123.06,30.64]
[1742312346990,0.06202151,123.08,123.07,8.1261]
[1742312347199,0.06202151,123.08,123.06,30.64]
[1742312347897,0.06202151,123.08,123.05,0.05388346]
[1742312348099,8.1267,123.06,123.05,0.05388346]
[1742312348492,4.25082151,123.08,123.05,0.05388346]
[1742312348892,0.06202151,123.08,123.05,0.05388346]
[1742312349305,0.06202151,123.08,123.05,30.69388346]
[1742312350004,0.06202151,123.08,123.05,0.05388346]
[1742312350607,21.41816338,123.06,123.02,268.32]
[1742312350806,8.1281,123.04,123.02,268.32]
[1742312351003,21.41816338,123.06,123.02,268.32]
[1742312351209,21.41816338,123.04,123.02,268.32]
[1742312351510,30.62,123.05,123.02,268.32]
[1742312351809,30.62,123.05,123.03,8.1287]
[1742312351810,0.05810563,123.05,123.03,8.1287]
[1742312352310,0.05810563,123.05,123.03,8.1285]
[1742312352703,0.05810563,123.05,123.02,298.99136885]
[1742312352910,0.05810563,123.05,123.03,8.1284]
[1742312353298,0.05810563,123.05,123.02,298.99136885]
[1742312353502,0.05810563,123.05,123.02,268.37136885]
[1742312353902,0.05810563,123.05,123.02,276.50066885]
[1742312354298,0.05810563,123.05,123.02,268.37136885]
[1742312354706,8.18600563,123.05,123.02,268.37136885]
[1742312355309,0.05810563,123.05,123.02,276.50066885]
[1742312355508,0.05810563,123.05,123.02,268.37136885]
[1742312356406,8.18580563,123.05,123.02,268.37136885]
[1742312356611,30.67810563,123.05,123.02,268.37136885]
[1742312357803,8.1284,123.04,123.02,268.37136885]
[1742312358208,8.1284,123.04,123.02,0.05136885]
[1742312359913,8.1287,123.03,123.02,0.05136885]
[1742312362012,8.1304,123.01,122.98,268.2]
[1742312362516,32.7998,123.02,122.98,268.2]
[1742312362711,4.3937,123.05,122.98,268.2]
[1742312362915,35.0137,123.05,123.01,8.1296]
[1742312363111,43.1416,123.05,123.01,8.1296]
[1742312363311,0.06227111,123.04,123.02,0.05801503]
[1742312363713,0.06227111,123.04,123.02,8.18731503]
[1742312364415,0.06227111,123.04,123.02,0.05801503]
[1742312364717,8.19067111,123.04,123.02,0.05801503]
[1742312366118,0.06227111,123.04,123.02,8.18731503]
[1742312367216,0.06227111,123.04,123.03,8.1287]
[1742312367419,0.06227111,123.04,123.02,0.05801503]
[1742312367621,8.19067111,123.04,123.02,0.05801503]
[1742312368119,0.06227111,123.04,123.02,8.18721503]
[1742312368323,0.06227111,123.04,123.02,0.05801503]
[1742312368820,0.06227111,123.04,123.03,8.1287]
[1742312372516,60.22043449,123.04,122.92,82.53035037]
[1742312372715,21.41816338,122.99,122.92,66.42810624]
[1742312373023,21.41816338,122.97,122.92,45.08571317]
[1742312373417,32.7459,122.98,122.92,45.08571317]
[1742312373620,32.7459,122.98,122.93,8.1349]
[1742312373818,0.05137969,122.96,122.94,0.06076918]
[1742312374420,30.67137969,122.96,122.94,0.06076918]
[1742312374722,38.80487969,122.96,122.94,0.06076918]
[1742312374922,30.67137969,122.96,122.94,0.06076918]
[1742312375427,52.08954307,122.96,122.94,0.06076918]
[1742312375922,0.05137969,122.96,122.95,41.32908169]
[1742312376127,23.58226338,123.03,122.95,41.32908169]
[1742312376426,23.58226338,123.03,122.98,8.1317]
[1742312376624,23.58226338,123.03,122.96,268.26]
[1742312376825,8.1297,123.02,122.97,8.1321]
[1742312377017,23.58226338,123.03,122.96,268.26]
[1742312377218,0.056708,123.01,122.98,0.05724634]
[1742312378530,52.17487138,123.01,122.98,0.05724634]
[1742312379227,30.756708,123.01,122.98,0.05724634]
[1742312379423,38.887308,123.01,122.98,0.05724634]
[1742312380328,30.756708,123.01,122.98,8.18914634]
[1742312380529,30.756708,123.01,122.98,0.05724634]
[1742312380840,38.887008,123.01,122.98,0.05724634]
[1742312381230,30.756708,123.01,122.98,0.05724634]
[1742312381432,38.887108,123.01,122.98,0.05724634]
[1742312381731,30.756708,123.01,122.98,0.05724634]
[1742312381933,8.1311,123.0,122.98,0.05724634]
[1742312382232,8.1311,123.0,122.96,276.393]
[1742312382233,34.27868678,122.99,122.96,268.26]
[1742312382435,38.8923,122.98,122.96,268.26]
[1742312382621,30.76,122.98,122.96,268.26]
[1742312383130,38.8924,122.98,122.96,268.26]
[1742312383331,38.94789069,122.98,122.96,268.3169037]
[1742312383726,8.1327,122.97,122.96,268.3169037]
[1742312383925,8.1327,122.97,122.96,264.9808037]
[1742312384128,8.1327,122.97,122.96,0.0569037]
[1742312384327,38.94779069,122.98,122.96,0.0569037]
[1742312386729,8.1327,122.97,122.96,0.0569037]
[1742312387133,8.1338,122.96,122.92,268.26]
[1742312387633,30.68,122.95,122.92,268.26]
[1742312387833,38.814,122.95,122.92,268.26]
[1742312388035,30.68,122.95,122.92,268.26]
[1742312388235,30.68,122.95,122.92,276.3959]
[1742312388437,38.87449881,122.95,122.92,276.3959]
[1742312388737,30.74019881,122.95,122.92,268.26]